Cogmind - Beta 9.6 @@@ ROGUE MODE // 2020.06.09 @ 22:26:31 Player: heavypress Result: Destroyed by S-10 Pest with Light Assault Rifle Performance ------------- Evolutions (0) 0 Regions Visited (4) 800 Robots Destroyed (11) 55 Value Destroyed (238) 238 Prototype IDs (2) 40 Alien Tech Used (0) 0 Bonus (300) 300 TOTAL SCORE: 1433 Bonus ------- Aligned with FarCom 300 Cogmind --------- Core Integrity 0/250 Matter 300/300 Energy 96/100 System Corruption 1% Temperature Cool (0) Movement Core (50) Location -9/Mines Parts ------- > --- POWER (1) -------- (None) > --- PROPULSION (2) --- (None) > --- UTILITY (2) ------ Structural Scanner Modified TNC > --- WEAPON (2) ------- (None) > --- INVENTORY (4) ---- Small Storage Unit Seismic Analyzer Peak State ------------ > --- POWER ------------ Light Nuclear Core > --- PROPULSION ------- Hover Unit Hover Unit > --- UTILITY ---------- Experimental Sensor Array Modified TNC > --- WEAPON ----------- (None) > --- INVENTORY -------- Flight Unit Small Storage Unit Structural Scanner Seismic Analyzer [Rating: 17] Favorites ----------- Power Light Nuclear Core Engine Light Ion Engine Power Core Light Nuclear Core Propulsion Aluminum Leg Leg Aluminum Leg Hover Unit Hover Unit Flight Unit Flight Unit Utility Small Storage Unit Device Experimental Sensor Array Storage Small Storage Unit Processor Modified TNC Weapon Light Assault Rifle Energy Gun Small Laser Ballistic Gun Light Assault Rifle Ballistic Cannon Light Cannon Build | -11 -10 -10 -10 -9 ------- Run | Scr Mat Min Exi Min Slots Evolved . | . . . . . Power . | . . . . . Propulsion . | . . . . . Utility . | . . . . . Weapon . | . . . . . Parts Attached 18 | 6 4 4 2 2 Power 2 | 1 1 . . . Engine 1 | 1 . . . . Core 1 | . 1 . . . Reactor . | . . . . . Propulsion 7 | 2 2 2 . 1 Treads . | . . . . . Leg 4 | 2 2 . . . Wheel . | . . . . . Hover 2 | . . 2 . . Flight 1 | . . . . 1 Utility 4 | 1 . . 2 1 Device 2 | . . . 1 1 Storage 1 | 1 . . . . Processor 1 | . . . 1 . Hackware . | . . . . . Protection . | . . . . . Artifact . | . . . . . Weapon 5 | 2 1 2 . . Energy Gun 2 | . . 2 . . Energy Cannon . | . . . . . Ballistic Gun 2 | 2 . . . . Ballistic Cannon 1 | . 1 . . . Launcher . | . . . . . Special Weapon . | . . . . . Impact Weapon . | . . . . . Slashing Weapon . | . . . . . Piercing Weapon . | . . . . . Special Melee Weapon . | . . . . . Unidentified Prototypes 2 | . . . 2 . Parts Lost 9 | . . 4 . 5 Power 1 | . . . . 1 Propulsion 3 | . . . . 3 Utility 1 | . . . . 1 Weapon 4 | . . 4 . . Highest Loss Streak 4 | . . 4 . 3 Average Slot Usage (%) 73 | . 85 79 64 48 Engine 4 | . 9 . . . Core 7 | . 4 14 14 4 Leg 14 | . 28 . . . Hover 11 | . . 28 28 16 Device 4 | . . . 7 12 Storage 9 | . 14 14 6 . Processor 4 | . . . 7 14 Ballistic Gun 8 | . 14 10 . . Ballistic Cannon 7 | . 13 8 . . Naked Turns . | . . . . . Heaviest Build 13 | 10 13 13 9 6 Greatest Support 20 | 20 20 12 12 12 Greatest Overweight (x) 1 | . . 1 . . Average Overweight (x) . | . . . . . Largest Inventory Capacity 6 | 6 6 6 6 4 Average Capacity 5 | 5 6 6 4 4 Most Carried 6 | 4 6 6 5 4 Average Carried 4 | 1 5 4 4 3 Final Capacity 6 | 6 6 6 4 4 Final Carried 6 | 2 6 4 4 2 Class Distribution -------------------- 85% | Mutant 14% | Scout Dominant Class ---------------- Mutant | -10/Materials Mutant | -10/Mines Mutant | -10/Exiles Scout | -9/Mines Resources | -11 -10 -10 -10 -9 ----------- Run | Scr Mat Min Exi Min Matter Collected 504 | 202 263 . . 39 Remotely . | . . . . . Salvage Created 374 | . 374 . . . Parts 20 | . 20 . . . Haulers Intercepted 1 | . 1 . . . Recyclers Shooed . | . . . . . Parts Field Recycled . | . . . . . Retrieved Matter . | . . . . . Parts Self-Destructed . | . . . . . Prevented . | . . . . . Kills | -11 -10 -10 -10 -9 ------- Run | Scr Mat Min Exi Min Combat Hostiles Destroyed 7 | . 7 . . . Guns 3 | . 3 . . . Cannons 4 | . 4 . . . Classes Destroyed 6 | . 6 . . . Worker 1 | . 1 . . . Hauler 1 | . 1 . . . Recycler 1 | . 1 . . . Watcher 1 | . 1 . . . Swarmer 2 | . 2 . . . Grunt 5 | . 5 . . . Best Kill Streak 3 | . 3 . . . Combat Bots Only 3 | . 3 . . . Max Kills in Single Turn 1 | . 1 . . . Gunslinging . | . . . . . Exploded . | . . . . . Melee . | . . . . . Uniques/NPCs Destroyed . | . . . . . Combat | -11 -10 -10 -10 -9 -------- Run | Scr Mat Min Exi Min Damage Taken 940 | . 427 276 . 237 Core 250 | . 52 75 . 123 Absorbed by Shields . | . . . . . Core Remaining (%) 100 | 100 . . . . Volleys Fired 39 | . 33 6 . . Largest 2 | . 2 2 . . Hottest 90 | . 55 90 . . Shots Fired 75 | . 66 9 . . Gun 41 | . 33 8 . . Cannon 34 | . 33 1 . . Launcher . | . . . . . Special . | . . . . . Kinetic 70 | . 66 4 . . Thermal 5 | . . 5 . . Explosive . | . . . . . Electromagnetic . | . . . . . Robot Hit Streak 5 | . 5 5 . . Robot Miss Streak 5 | . 5 2 . . Penetration Max . | . . . . . Secondary Targets . | . . . . . Shots Hit Robots 37 | . 31 6 . . Core Hits 24 | . 22 1 . 1 Critical Hits . | . . . . . Critical Kills . | . . . . . Critical Parts Destroyed . | . . . . . Melee Attacks . | . . . . . Impact . | . . . . . Slashing . | . . . . . Piercing . | . . . . . Sneak Attacks . | . . . . . Combat Hostiles . | . . . . . Follow-up Attacks . | . . . . . Damage Inflicted 475 | . 376 93 . 6 Guns 218 | . 143 75 . . Cannons 251 | . 233 18 . . Explosions . | . . . . . Melee . | . . . . . Ramming 6 | . . . . 6 Kinetic 408 | . 376 32 . . Thermal 61 | . . 61 . . Explosive . | . . . . . Electromagnetic . | . . . . . Impact . | . . . . . Slashing . | . . . . . Piercing . | . . . . . Highest Corruption 1 | . 1 1 1 1 Average Corruption 1 | . 1 1 1 1 Corruption Purged . | . . . . . Effects 5 | . 2 1 1 1 Message Errors 3 | . 1 1 . 1 Energy Discharges 1 | . . . 1 . Targeting Errors 1 | . 1 . . . Overload Shots . | . . . . . Overflow Damage . | . . . . . Projectiles . | . . . . . Explosions . | . . . . . Melee . | . . . . . Knockbacks 1 | . 1 . . . Impact . | . . . . . Kinetic 1 | . 1 . . . Secondary . | . . . . . Self-Inflicted Damage 3 | . . . . 3 Shots . | . . . . . Rammed 1 | . . . . 1 Targets Rammed 1 | . . . . 1 Kicked . | . . . . . Crushed . | . . . . . Highest Temperature 104 | . 64 104 . . Average Temperature 29 | . 24 45 . . Received Heat Transfer 303 | . 120 90 . 93 Siege Activations . | . . . . . Robots Corrupted . | . . . . . Combat Hostiles . | . . . . . Parts Fried . | . . . . . Impact Corruptions . | . . . . . Robots Melted . | . . . . . Combat Hostiles . | . . . . . Parts Melted . | . . . . . Heat Transferred 149 | . . 149 . . Parts Sabotaged . | . . . . . Parts Stolen . | . . . . . Parts Stripped . | . . . . . Power Chain Reactions . | . . . . . Missiles Intercepted . | . . . . . Alert | -11 -10 -10 -10 -9 ------- Run | Scr Mat Min Exi Min Peak Influence 168 | . 168 43 . . Average Influence 48 | . 74 23 . . Maximum Alert Level . | . . . . . Low Security (%) 100 | 100 100 100 . 100 Level 1 . | . . . . . Level 2 . | . . . . . Level 3 . | . . . . . Level 4 . | . . . . . Level 5 . | . . . . . High Security . | . . . . . Max Security . | . . . . . Squads Dispatched 3 | . 2 . . 1 Investigation . | . . . . . Extermination . | . . . . . Reinforcement 3 | . 2 . . 1 Assault . | . . . . . Garrison . | . . . . . Intercept . | . . . . . Construction Impeded 1 | . . . . 1 Haulers Reinforced . | . . . . . Stealth | -11 -10 -10 -10 -9 --------- Run | Scr Mat Min Exi Min Distress Signals . | . . . . . Communications Jammed . | . . . . . Distress Signals . | . . . . . Times Spotted 27 | . 14 2 . 11 Peak Tracking Total 7 | . 3 2 . 7 Tactical Retreats 2 | . . . . 2 Traps | -11 -10 -10 -10 -9 ------- Run | Scr Mat Min Exi Min Traps Triggered 1 | . 1 . . . Indirectly . | . . . . . Trap Hack Attempts . | . . . . . Triggered . | . . . . . Disarmed . | . . . . . Reprogrammed . | . . . . . Reused . | . . . . . Traps Extracted . | . . . . . Installed . | . . . . . Triggered . | . . . . . Machines | -11 -10 -10 -10 -9 ---------- Run | Scr Mat Min Exi Min Machines Disabled 2 | . 2 . . . Max in Single Turn 1 | . 1 . . . Machines Sabotaged . | . . . . . Garrisons Compromised . | . . . . . Overloaded Fab Kills . | . . . . . Fab Network Shutdowns . | . . . . . Hacking | -11 -10 -10 -10 -9 --------- Run | Scr Mat Min Exi Min Machines Accessed 3 | . 2 . 1 . Terminals 2 | . 2 . . . Fabricators . | . . . . . Repair Stations . | . . . . . Recycling Units . | . . . . . Scanalyzers . | . . . . . Garrison Access . | . . . . . Total Hacks 7 | . 6 . 1 . Successful 4 | . 3 . 1 . Failed 3 | . 3 . . . Catastrophic . | . . . . . Database Lockouts . | . . . . . Manual 1 | . . . 1 . Terminals 6 | . 6 . . . Fabricators . | . . . . . Repair Stations . | . . . . . Recycling Units . | . . . . . Scanalyzers . | . . . . . Garrison Access . | . . . . . Terminal Hacks 4 | . 3 . 1 . Record 1 | . . . 1 . Robot Analysis 1 | . 1 . . . Emergency Access Points 1 | . 1 . . . Locate Traps 1 | . 1 . . . Fabricator Hacks . | . . . . . Repair Station Hacks . | . . . . . Recycling Unit Hacks . | . . . . . Scanalyzer . | . . . . . Garrison Access Hacks . | . . . . . Unauthorized Hacks . | . . . . . Terminals . | . . . . . Fabricators . | . . . . . Repair Stations . | . . . . . Recycling Units . | . . . . . Scanalyzers . | . . . . . Garrison Access . | . . . . . Data Cores Recovered . | . . . . . Used . | . . . . . Hacking Detections 1 | . 1 . . . Full Trace Events . | . . . . . Feedback Events . | . . . . . Feedback Blocked . | . . . . . Robot Schematics Acquired . | . . . . . Robots Built . | . . . . . Matter . | . . . . . Time . | . . . . . Total Robot Build Rating . | . . . . . Part Schematics Acquired . | . . . . . Parts Built . | . . . . . Matter . | . . . . . Time . | . . . . . Total Part Build Rating . | . . . . . Parts Repaired . | . . . . . Time . | . . . . . Parts Recycled . | . . . . . Recycled Matter . | . . . . . Retrieved Matter . | . . . . . Retrieved Components . | . . . . . Parts Scanalyzed . | . . . . . Part Schematics Acquired . | . . . . . Parts Damaged . | . . . . . Bothacking | -11 -10 -10 -10 -9 ------------ Run | Scr Mat Min Exi Min Used RIF Installer . | . . . . . Robots Hacked . | . . . . . Non-combat . | . . . . . Combat . | . . . . . Robot Hacks Applied . | . . . . . Relay Couplers Released . | . . . . . Robots Rewired . | . . . . . Allies Hacked . | . . . . . Hacks Repelled . | . . . . . Allies | -11 -10 -10 -10 -9 -------- Run | Scr Mat Min Exi Min Total Allies . | . . . . . Largest Group . | . . . . . Highest-Rated Group . | . . . . . Highest-Rated Ally . | . . . . . Total Orders . | . . . . . Ally Attacks . | . . . . . Total Damage . | . . . . . Kills . | . . . . . Allies Corrupted . | . . . . . Allies Melted . | . . . . . Intel | -11 -10 -10 -10 -9 ------- Run | Scr Mat Min Exi Min Robot Analysis Total 1 | . 1 . . . Derelict Logs Recovered . | . . . . . Drone Launches . | . . . . . Drone Recoveries . | . . . . . Exploration | -11 -10 -10 -10 -9 ------------- Run | Scr Mat Min Exi Min Turns Passed 1067 | 56 509 78 246 178 Spaces Moved 1175 | 43 323 61 434 314 Core 26 | 13 . . . 13 Treads . | . . . . . Legs 353 | 30 323 . . . Wheels . | . . . . . Hover 743 | . . 61 434 248 Flight 53 | . . . . 53 Fastest Speed 40 | 50 120 56 56 40 Average Speed 76 | 98 120 92 56 54 Slowest Speed 120 | 120 120 116 56 60 Overloaded Moves . | . . . . . Propulsion Burnouts . | . . . . . Robots Hopped 3 | . . . . 3 Cave-ins Triggered . | . . . . . Exploration Rate (%) 47 | 3 71 11 88 63 Regions Visited 4 Branch Regions 3 Pre-discovered Areas . | . . . . . Known Exits Taken . | . . . . . Unknown Exits Taken 4 | 1 1 1 1 . Scrap Searched . | . . . . . Spaces Dug . | . . . . . Terrain Destroyed . | . . . . . Melee . | . . . . . Projectile . | . . . . . AOE . | . . . . . Actions | -11 -10 -10 -10 -9 --------- Run | Scr Mat Min Exi Min Total 1269 | 56 386 74 436 317 Wait 16 | . 13 . . 3 Move 1166 | 42 322 60 433 309 Hop 2 | . . . . 2 Pick Up 20 | 8 9 2 1 . Fast Attach . | . . . . . Attach 13 | 6 . 4 1 2 Detach . | . . . . . Swap 5 | . 4 . 1 . Drop 7 | . 5 2 . . Fire 39 | . 33 6 . . Melee . | . . . . . Ram 1 | . . . . 1 Kick . | . . . . . Crush . | . . . . . Escape Stasis . | . . . . . Rewire . | . . . . . Trap . | . . . . . Miscellaneous . | . . . . . Route ------- -11/Scrapyard -10/Materials (discovered 3 exits: [*Mat x2] / [*Min]) -10/Mines -10/Exiles (discovered 2 exits: [*Min x2]) -9/Mines History --------- Turn | Location | Event 4 | -11/Scrapyard | Discovered new exit (range 14) 57 | -11/Scrapyard | Entered Materials 225 | -10/Materials | Discovered new exit (range 8) 260 | -10/Materials | Discovered new exit (range 12) 318 | -10/Materials | Build established: Mutant 339 | -10/Materials | Discovered new exit (range 16) 566 | -10/Materials | Entered Mines 571 | -10/Mines | Found a damaged Exp. Sensor Array with a note attached 573 | -10/Mines | Found Prototype Device 593 | -10/Mines | Deemed a non-threat by the Exiles lab entrance 593 | -10/Mines | Discovered new exit (range 5) 631 | -10/Mines | Core integrity fell below 50% 644 | -10/Mines | Entered Exiles 653 | -10/Exiles | Discovered new exit (range 15) 661 | -10/Exiles | Lost 4 parts (4w) 667 | -10/Exiles | Met 8R-AWN 680 | -10/Exiles | Met EX-HEX 698 | -10/Exiles | Met EX-BIN 736 | -10/Exiles | Aligned with FarCom system 737 | -10/Exiles | Given EX-Vault access code 750 | -10/Exiles | Opened EX-Vault 754 | -10/Exiles | Found Prototype Processor 758 | -10/Exiles | Identified Modified TNC 759 | -10/Exiles | Identified Exp. Sensor Array 768 | -10/Exiles | Warned to stay clear of 0b10 Research branches 785 | -10/Exiles | Met EX-DEC 804 | -10/Exiles | Visited The Gauntlet 884 | -10/Exiles | Discovered new exit (range 12) 890 | -10/Exiles | Left Exiles lab with Modified TNC 890 | -10/Exiles | Entered Mines 954 | -9/Mines | Met a Derelict bent on vengeance 1041 | -9/Mines | Core integrity fell below 20% 1068 | -9/Mines | Destroyed by S-10 Pest with Light Assault Rifle Last Messages --------------- G-47 Trooper unfolds itself. G-34 Mercenary unfolds itself. Lgt. Nuclear Core destroyed. K-01 Serf collects debris. Hover Unit destroyed. K-01 Serf collects debris. 8A#PGQL|JPY&CRC,J=YQD K-01 Serf collects debris. Exp. Sensor Array destroyed. K-01 Serf collects debris. Hover Unit destroyed. Slammed into U-05 Engineer. ALERT: Construction progress impeded, dispatching reinforcements to local area. K-01 Serf collects debris. R-06 Scavenger collects Beamcaster. K-01 Serf collects debris. Flight Unit destroyed. Acquired 39 matter. K-01 Serf collects debris. Map ----- +----------------------------------------------------+ | ?????????????????????????????????????????????????? | | ?????????????????????????????????????????????????? | | ?????????????????????????????????????????????????? | | ?????????????????????????????????????????????????? | | ?????????????????????????????????????????????????? | | ?????????????????????????????????????????????????? | | #???????????????????????????????####?????????????? | | ??????????????????????????????## ##????????????? | | #?????????????????????????????# ###??????????? | | ###??????????????????????????? ###????????? | | ##?####??????gl????????????? ?????????? | | ### ##???????g????????????? #?????????? | | # ## #?????????????????????# #?????????? | | ?# ## #?????????????????##### #?????????? | | ?# #?## #?????????????????# #??????????? | | ?# #??# ##????????????????# #???????????? | | ?# #### #????????????????# #???????????? | | ?# ## ##??????????????????# #########???? | | ?## ##????####?????????## g #???? | | ?## ##?### ##?????????## #######g#???? | | ?# #### ### ##?????????# #?????# #???? | | ## ##??## ssss ##????????# #?????# #???? | | ###????## #????????# ####### ##??? | | ##???????# ########## ## #### | | # ##???????## rt% k gt ## """ | | ###????????# ### @ ## """ #### | | ???????????# ##?## ################ """ #??? | | ???????????# #??## ##?????????????# #??? | | ???????????# #??# ###???????????#########??? | | ??????????## #??# ##?????????????????????? | | ########### #?## ###???????????????????? | | #?# ##?????????###??????? | | ##?# ### ##??????## ##?????? | | ########### ##??# #?## ##?????# #?????? | | #?????????####??# ##??## ##???## #?????? | | #??????????????# ###???## ##### #??????? | | ##?????????????# #?????## ## ##?????? | | ##???????????# ?????## ####### | | #???????????# #??#### | | ##??????????####???# """ | | ##???????????????# ## """ ####### | | ##??????????????# #### """ ####?????? | | #??????????????# ####??# ##????????? | | ##?????????????## #??????## #?????????? | | ## ##?????????????##????????#### ##?????????? | | #### #??????????????????????????#####??????????? | | #?## #???####??????????????????????????????????? | | ### #??## ##?????????????????????????????????? | | ##?# ##????????????????????????????????? | | ## #?# #????????????????????????????????? | +----------------------------------------------------+ Best States ------------- Heat Dissipation 25 Energy Generation 14 Energy Capacity 160 Matter Stores 300 Matter Capacity 300 Sight Range 16 Robot Scan Range 30 Terrain Scan Density 10 Evasion (%) 62 Item Schematics ----------------- None Robot Schematics ------------------ None Fabricated ------------ Nothing Alien Tech Used ----------------- None Achievements -------------- None Challenges ------------ None Game ------ Seed ForceIonicFalx Manual? 0 Play Time 00:17:46 Cumulative 14.2 hours Start 2020.06.09 @ 22:10:13 End 2020.06.09 @ 22:26:31 Sessions 1 Manual Loads 0 Difficulty Rogue Special Mode None Game No. 27 Rogue 27 Adventurer 0 Explorer 0 Win Type - Total 0 Types 0/0/0/0/0/0/0 Lore% 18 Gallery% 23 Achievement% 17 Wizard Run 0 Options --------- ASCII 0 Keyboard 0 Movement Mouse Keybinds 0 Fullscreen 1 Font 18/SmallcapsGlow Map View 76x50 Tactical HUD 0 Map Filters NONE Filters NONE Steam 1 RUN: b97deae8-e879-4fdb-8c85-0dcfbc1c7422